fUST/lending_fUST_20250930
["ID","MTS","AMOUNT","RATE_DAILY","PERIOD"]
[388441553,1759169444941,-881.98,0.00023707,2]
[388441554,1759169444950,-758.97,0.00023707,2]
[388441555,1759169444959,-480.0,0.00023707,2]
[388441556,1759169444968,-789.86,0.00023707,2]
[388441557,1759169444977,-654.68,0.00023707,2]
[388441558,1759169444987,-480.0,0.00023707,2]
[388441559,1759169444996,-513.68,0.00023707,2]
[388441560,1759169445005,-480.0,0.00023707,2]
[388441561,1759169445014,-2023.29,0.00023707,2]
[388441562,1759169445023,-480.0,0.00023707,2]
[388441563,1759169445033,-480.0,0.00023707,2]
[388441564,1759169445042,-1930.02,0.00023707,2]
[388441565,1759169445051,-480.0,0.00023707,2]
[388441566,1759169445059,-480.0,0.00023707,2]
[388441567,1759169445068,-2504.81,0.00023707,2]
[388441568,1759169445077,-505.18,0.00023707,2]
[388441569,1759169445086,-480.0,0.00023707,2]
[388441570,1759169445095,-480.0,0.00023707,2]
[388441571,1759169445104,-496.7,0.00023707,2]
[388441572,1759169445113,-754.71,0.00023707,2]
[388441573,1759169445122,-1642.53,0.00023707,2]
[388441574,1759169445131,-487.19,0.00023707,2]
[388441575,1759169445140,-480.0,0.00023707,2]
[388441576,1759169445150,-991.58,0.00023707,2]
[388441577,1759169445159,-759.5,0.00023707,2]
[388441578,1759169445167,-1142.9,0.00023707,2]
[388441579,1759169445176,-480.0,0.00023707,2]
[388441580,1759169445185,-480.0,0.00023707,2]
[388441581,1759169445194,-1247.47,0.00023707,2]
[388441582,1759169445204,-480.0,0.00023707,2]
[388441583,1759169445213,-1111.08,0.00023707,2]
[388441584,1759169445223,-1067.81,0.00023707,2]
[388441585,1759169445232,-480.0,0.00023707,2]
[388441586,1759169445243,-636.06,0.00023707,2]
[388441587,1759169445253,-480.0,0.00023707,2]
[388441588,1759169445262,-480.0,0.00023707,2]
[388441589,1759169445271,-4596.88,0.00023707,2]
[388441590,1759169445281,-480.0,0.00023707,2]
[388441591,1759169445290,-1908.11,0.00023707,2]
[388441592,1759169445299,-583.03,0.00023707,2]
[388441593,1759169445309,-2012.06,0.00023707,2]
[388441594,1759169445318,-782.14,0.00023707,2]
[388441595,1759169445327,-480.0,0.00023707,2]
[388441596,1759169445337,-480.0,0.00023707,2]
[388441597,1759169445346,-480.0,0.00023707,2]
[388441598,1759169445354,-1007.45,0.00023707,2]
[388441599,1759169445364,-617.06,0.00023707,2]
[388441600,1759169445372,-584.64,0.00023707,2]
[388441601,1759169445382,-581.59,0.00023707,2]
[388441602,1759169445391,-480.0,0.00023707,2]
[388441603,1759169445401,-764.23,0.00023707,2]
[388441604,1759169445410,-480.0,0.00023707,2]
[388441605,1759169445419,-480.0,0.00023707,2]
[388441606,1759169445435,-4512.89,0.00023707,2]
[388441607,1759169445444,-553.52802134,0.00023707,2]
[388441608,1759169445453,-572.29,0.00023707,2]
[388441609,1759169445462,-2038.46,0.00023707,2]
[388441610,1759169445474,-480.0,0.00023707,2]
[388441611,1759169445483,-843.73,0.00023707,2]
[388441612,1759169445491,-679.83,0.00023707,2]
[388441613,1759169445501,-480.0,0.00023707,2]
[388441614,1759169445511,-505.06,0.00023707,2]
[388441615,1759169445520,-2363.06,0.00023707,2]
[388441616,1759169445529,-756.07,0.00023707,2]
[388441617,1759169445538,-480.0,0.00023707,2]
[388441618,1759169445547,-480.0,0.00023707,2]
[388441619,1759169445556,-615.45,0.00023707,2]
[388441620,1759169445565,-731.82,0.00023707,2]
[388441621,1759169445574,-480.0,0.00023707,2]
[388441622,1759169445583,-956.83,0.00023707,2]
[388441623,1759169445592,-480.0,0.00023707,2]
[388441624,1759169445601,-805.63,0.00023707,2]
[388441625,1759169445611,-5180.78,0.00023707,2]
[388441626,1759169445620,-743.6,0.00023707,2]
[388441627,1759169445629,-1723.74,0.00023707,2]
[388441628,1759169445638,-559.24,0.00023707,2]
[388441629,1759169445647,-1192.02,0.00023707,2]
[388441630,1759169445656,-1206.39,0.00023707,2]
[388441632,1759169445666,-480.0,0.00023707,2]
[388441633,1759169445675,-1011.9,0.00023707,2]
[388441634,1759169445684,-480.0,0.00023707,2]
[388441635,1759169445693,-480.0,0.00023707,2]
[388441636,1759169445702,-500.0,0.00023707,2]
[388441637,1759169445711,-480.0,0.00023707,2]
[388441638,1759169445720,-430.65286812,0.00023707,2]
[388441640,1759169445729,-487.14777658,0.00023709,2]
[388441642,1759169445738,-480.0,0.00023709,2]
[388441644,1759169445748,-480.0,0.00023709,2]
[388441646,1759169445757,-480.0,0.00023709,2]
[388441648,1759169445767,-480.0,0.00023709,2]
[388441649,1759169445776,-480.0,0.00023709,2]
[388441650,1759169445786,-480.0,0.00023709,2]
[388441651,1759169445795,-480.0,0.00023709,2]
[388441652,1759169445805,-480.0,0.00023709,2]
[388441653,1759169445815,-480.0,0.00023709,2]
[388441654,1759169445827,-480.0,0.00023709,2]
[388441655,1759169445838,-480.0,0.00023709,2]
[388441656,1759169445848,-480.0,0.00023709,2]
[388441657,1759169445859,-580.49,0.00023709,2]
[388441658,1759169445870,-480.0,0.00023709,2]
[388441659,1759169445879,-500.0,0.00023709,2]
[388441660,1759169445890,-480.0,0.00023709,2]
[388441661,1759169445899,-1129.63,0.00023709,2]
[388441662,1759169445908,-480.0,0.00023709,2]
[388441663,1759169445917,-480.0,0.00023709,2]
[388441664,1759169445926,-480.0,0.00023709,2]
[388441665,1759169445937,-480.0,0.00023709,2]
[388441666,1759169445951,-480.0,0.00023709,2]
[388441667,1759169445961,-1225.62,0.00023709,2]
[388441668,1759169445970,-480.0,0.00023709,2]
[388441669,1759169445980,-480.0,0.00023709,2]
[388441670,1759169445990,-480.0,0.00023709,2]
[388441671,1759169446000,-480.0,0.00023709,2]
[388441672,1759169446011,-502.99,0.00023709,2]
[388441673,1759169446021,-582.71,0.00023709,2]
[388441674,1759169446031,-480.0,0.00023709,2]
[388441675,1759169446041,-1003.21,0.00023709,2]
[388441676,1759169446051,-480.0,0.00023709,2]
[388441677,1759169446061,-480.0,0.00023709,2]
[388441678,1759169446070,-480.0,0.00023709,2]
[388441679,1759169446081,-480.0,0.00023709,2]
[388441680,1759169446092,-480.0,0.00023709,2]
[388441681,1759169446102,-480.0,0.00023709,2]
[388441682,1759169446111,-480.0,0.00023709,2]
[388441683,1759169446120,-523.34,0.00023709,2]
[388441684,1759169446130,-480.0,0.00023709,2]
[388441685,1759169446140,-480.0,0.00023709,2]
[388441686,1759169446150,-480.0,0.00023709,2]
[388441687,1759169446159,-480.0,0.00023709,2]
[388441688,1759169446168,-487.06,0.00023709,2]
[388441689,1759169446178,-480.0,0.00023709,2]
[388441690,1759169446187,-480.0,0.00023709,2]
[388441691,1759169446197,-480.0,0.00023709,2]
[388441692,1759169446206,-803.64,0.00023709,2]
[388441693,1759169446215,-480.0,0.00023709,2]
[388441694,1759169446224,-480.0,0.00023709,2]
[388441695,1759169446234,-480.0,0.00023709,2]
[388441696,1759169446243,-480.0,0.00023709,2]
[388441697,1759169446253,-480.0,0.00023709,2]
[388441698,1759169446262,-515.73,0.00023709,2]
[388441699,1759169446271,-488.36,0.00023709,2]
[388441700,1759169446280,-480.0,0.00023709,2]
[388441701,1759169446289,-480.0,0.00023709,2]
[388441702,1759169446298,-480.0,0.00023709,2]
[388441703,1759169446309,-480.0,0.00023709,2]
[388441704,1759169446318,-480.0,0.00023709,2]
[388441705,1759169446327,-151.0,0.00023711,2]
[388441706,1759169446337,-500.0,0.00023711,2]
[388441707,1759169446347,-500.0,0.00023711,2]
[388441708,1759169446357,-500.0,0.00023711,2]
[388441709,1759169446367,-500.0,0.00023711,2]
[388441710,1759169446376,-500.0,0.00023711,2]
[388441711,1759169446386,-152.46363671,0.00023711,2]
[388441712,1759169446396,-151.0,0.00023711,2]
[388441713,1759169446406,-587.0,0.00023712,2]
[388441714,1759169446418,-329.93889635,0.00023714,2]
[388441715,1759169446432,-800.0,0.00023718,2]
[388441716,1759169446441,-800.0,0.00023736,2]
[388441717,1759169446450,-2851.5735693,0.00023749,2]
[388441718,1759169446460,-479.94765416,0.00023755,2]
[388441719,1759169446470,-800.0,0.0002376,2]
[388441720,1759169446480,-500.0,0.00023773,2]
[388441721,1759169446489,-151.0,0.00023773,2]
[388441722,1759169446500,-500.0,0.00023773,2]
[388441723,1759169446510,-164.88740301,0.00023773,2]
[388441724,1759169446521,-151.0,0.00023773,2]
[388441725,1759169446530,-500.0,0.00023773,2]
[388441727,1759169446540,-151.0,0.00023773,2]
[388441729,1759169446548,-500.0,0.00023773,2]
[388441730,1759169446558,-151.0,0.00023773,2]
[388441731,1759169446567,-151.0,0.00023773,2]
[388441732,1759169446578,-151.0,0.00023773,2]
[388441733,1759169446588,-1502.0,0.00023773,2]
[388441734,1759169446597,-500.0,0.00023773,2]
[388441735,1759169446607,-151.0,0.00023773,2]
[388441736,1759169446616,-500.0,0.00023773,2]
[388441737,1759169446625,-500.0,0.00023773,2]
[388441738,1759169446635,-151.0,0.00023773,2]
[388441739,1759169446647,-151.0,0.00023773,2]
[388441740,1759169446657,-151.0,0.00023773,2]
[388441741,1759169446667,-500.0,0.00023773,2]
[388441742,1759169446676,-151.0,0.00023773,2]
[388441743,1759169446686,-151.0,0.00023773,2]
[388441744,1759169446695,-151.0,0.00023773,2]
[388441745,1759169446705,-151.0,0.00023773,2]
[388441746,1759169446714,-151.0,0.00023773,2]
[388441747,1759169446724,-500.0,0.00023773,2]
[388441748,1759169446734,-800.0,0.00023774,2]
[388441749,1759169446743,-800.0,0.00023779,2]
[388441750,1759169446754,-800.0,0.00023786,2]
[388441751,1759169446763,-800.0,0.00023791,2]
[388441752,1759169446772,-151.0,0.000238,10]
[388441753,1759169446782,-151.0,0.000238,7]
[388441754,1759169446791,-151.0,0.000238,10]
[388441755,1759169446800,-800.0,0.00023808,2]
[388441756,1759169446809,-800.0,0.00023821,2]
[388441757,1759169446818,-800.0,0.00023827,2]
[388441758,1759169446827,-800.0,0.00023831,2]
[388441759,1759169446835,-800.0,0.0002384,2]
[388441760,1759169446844,-642.87,0.00023882,2]
[388441761,1759169446853,-176.55544409,0.00023888,2]
[388441762,1759169446862,-2851.5735693,0.00023888,2]
[388441763,1759169446871,-800.0,0.00023895,2]
[388441764,1759169446880,-151.0,0.000239,5]
[388441765,1759169446888,-151.0,0.000239,7]
[388441766,1759169446897,-151.0,0.000239,5]
[388441768,1759169446906,-151.0,0.000239,10]
[388441770,1759169446926,-800.0,0.00023912,2]
[388441771,1759169446935,-800.0,0.00023922,2]
[388441773,1759169446944,-2351.0,0.00023941,2]
[388441775,1759169446953,-800.0,0.00023942,2]
[388441776,1759169446962,-800.0,0.00023945,2]
[388441778,1759169446971,-800.0,0.00023959,2]
[388441779,1759169446980,-800.0,0.00023965,2]
[388441780,1759169446992,-151.0,0.00023969,2]
[388441782,1759169447001,-480.0,0.00023972,2]
[388441784,1759169447011,-480.0,0.00023972,2]
[388441786,1759169447022,-519.91,0.00023972,2]
[388441787,1759169447031,-480.0,0.00023972,2]
[388441789,1759169447041,-500.0,0.00023973,2]
[388441791,1759169447051,-500.0,0.00023973,2]
[388441792,1759169447061,-617.66842259,0.00023973,2]
[388441794,1759169447071,-402.36427122,0.00023973,2]
[388441796,1759169447080,-500.0,0.00023973,2]
[388441797,1759169447090,-500.0,0.00023973,2]
[388441799,1759169447100,-500.0,0.00023973,2]
[388441800,1759169447110,-500.0,0.00023973,2]
[388441802,1759169447120,-500.0,0.00023973,2]
[388441804,1759169447130,-500.0,0.00023973,2]
[388441806,1759169447142,-500.0,0.00023973,2]
[388441807,1759169447153,-578.408847,0.00023973,2]
[388441809,1759169447163,-500.0,0.00023973,2]
[388441811,1759169447173,-500.0,0.00023973,2]
[388441812,1759169447182,-500.0,0.00023973,2]
[388441814,1759169447192,-500.0,0.00023973,2]
[388441816,1759169447201,-500.0,0.00023973,2]
[388441817,1759169447211,-338.07728549,0.00023973,2]
[388441819,1759169447222,-500.0,0.00023973,2]
[388441820,1759169447232,-504.13971878,0.00023973,2]
[388441822,1759169447241,-500.0,0.00023973,2]
[388441824,1759169447251,-500.0,0.00023973,2]
[388441826,1759169447260,-500.0,0.00023973,2]
[388441827,1759169447272,-509.3829313,0.00023973,2]
[388441829,1759169447281,-500.0,0.00023973,2]
[388441831,1759169447291,-501.4504098,0.00023973,2]
[388441833,1759169447301,-175.00939999,0.00023973,2]
[388441834,1759169447310,-500.0,0.00023973,2]
[388441836,1759169447319,-500.0,0.00023973,2]
[388441838,1759169447329,-163.72715987,0.00023973,2]
[388441840,1759169447338,-500.0,0.00023973,2]
[388441841,1759169447348,-500.0,0.00023973,2]
[388441843,1759169447358,-500.0,0.00023973,2]
[388441845,1759169447368,-500.0,0.00023973,2]
[388441847,1759169447377,-503.12023794,0.00023973,2]
[388441848,1759169447387,-279.20371496,0.00023973,2]
[388441849,1759169447397,-373.59886101,0.00023973,2]
[388441850,1759169447407,-515.16845242,0.00023973,2]
[388441852,1759169447418,-500.0,0.00023973,2]
[388441854,1759169447436,-500.0,0.00023973,2]
[388441855,1759169447446,-500.0,0.00023973,2]
[388441857,1759169447456,-500.0,0.00023973,2]
[388441859,1759169447467,-500.0,0.00023973,2]
[388441861,1759169447476,-500.0,0.00023973,2]
[388441862,1759169447486,-500.0,0.00023973,2]
[388441864,1759169447496,-500.0,0.00023973,2]
[388441866,1759169447508,-451.61334099,0.00023973,2]
[388441868,1759169447519,-500.0,0.00023973,2]
[388441869,1759169447528,-500.0,0.00023973,2]
[388441871,1759169447538,-500.0,0.00023973,2]
[388441873,1759169447547,-500.0,0.00023973,2]
[388441874,1759169447556,-437.9317725,0.00023973,2]
[388441876,1759169447566,-500.0,0.00023973,2]
[388441878,1759169447575,-504.06488842,0.00023973,2]
[388441880,1759169447585,-431.25894735,0.00023973,2]
[388441881,1759169447594,-500.0,0.00023973,2]
[388441883,1759169447603,-500.0,0.00023973,2]
[388441885,1759169447613,-500.0,0.00023973,2]
[388441887,1759169447622,-500.0,0.00023973,2]
[388441888,1759169447632,-500.0,0.00023973,2]
[388441890,1759169447641,-500.0,0.00023973,2]
[388441892,1759169447650,-500.0,0.00023973,2]
[388441893,1759169447660,-500.0,0.00023973,2]
[388441895,1759169447669,-412.82600998,0.00023973,2]
[388441897,1759169447682,-500.0,0.00023973,2]
[388441899,1759169447691,-509.86893301,0.00023973,2]
[388441900,1759169447701,-480.0,0.00023973,2]
[388441902,1759169447711,-480.0,0.00023973,2]
[388441904,1759169447720,-480.0,0.00023973,2]
[388441906,1759169447729,-800.0,0.00023973,2]
[388441907,1759169447738,-2598.37,0.00023973,2]
[388441909,1759169447748,-480.0,0.00023973,2]
[388441911,1759169447757,-480.0,0.00023973,2]
[388441912,1759169447766,-2068.93,0.00023973,2]
[388441914,1759169447777,-976.09,0.00023973,2]
[388441916,1759169447787,-480.0,0.00023973,2]
[388441918,1759169447795,-1123.0,0.00023973,2]
[388441919,1759169447805,-480.0,0.00023973,2]
[388441921,1759169447814,-480.0,0.00023973,2]
[388441923,1759169447823,-480.0,0.00023973,2]
[388441925,1759169447832,-497.85,0.00023973,2]
[388441926,1759169447841,-692.44,0.00023973,2]
[388441927,1759169447850,-1617.79,0.00023973,2]
[388441929,1759169447861,-702.4,0.00023973,2]
[388441931,1759169447870,-480.0,0.00023973,2]
[388441932,1759169447880,-2146.27,0.00023973,2]
[388441933,1759169447890,-480.0,0.00023973,2]
[388441934,1759169447899,-538.09,0.00023973,2]
[388441935,1759169447910,-676.75,0.00023973,2]
[388441936,1759169447920,-781.63,0.00023973,2]
[388441937,1759169447930,-480.0,0.00023973,2]
[388441938,1759169447939,-596.77,0.00023973,2]
[388441939,1759169447948,-480.0,0.00023973,2]
[388441940,1759169447958,-683.17,0.00023973,2]
[388441941,1759169447967,-1383.81,0.00023973,2]
[388441942,1759169447976,-579.14,0.00023973,2]
[388441943,1759169447986,-992.48,0.00023973,2]
[388441944,1759169447995,-480.0,0.00023973,2]
[388441945,1759169448005,-480.0,0.00023973,2]
[388441947,1759169448014,-2204.38,0.00023973,2]
[388441949,1759169448023,-1274.66,0.00023973,2]
[388441950,1759169448032,-3570.8,0.00023973,2]
[388441952,1759169448042,-1968.14,0.00023973,2]
[388441954,1759169448051,-480.0,0.00023973,2]
[388441956,1759169448061,-480.0,0.00023973,2]
[388441957,1759169448070,-480.0,0.00023973,2]
[388441959,1759169448079,-606.88,0.00023973,2]
[388441960,1759169448089,-480.0,0.00023973,2]
[388441962,1759169448098,-480.0,0.00023973,2]
[388441963,1759169448108,-1366.64,0.00023973,2]
[388441965,1759169448117,-564.26,0.00023973,2]
[388441967,1759169448127,-480.0,0.00023973,2]
[388441968,1759169448136,-3763.3,0.00023973,2]
[388441969,1759169448146,-480.0,0.00023973,2]
[388441970,1759169448156,-940.24,0.00023973,2]
[388441971,1759169448165,-8900.67,0.00023973,2]
[388441972,1759169448175,-480.0,0.00023973,2]
[388441973,1759169448184,-480.0,0.00023973,2]
[388441974,1759169448194,-1088.53,0.00023973,2]
[388441975,1759169448203,-867.34,0.00023973,2]
[388441976,1759169448213,-480.0,0.00023973,2]
[388441977,1759169448223,-480.0,0.00023974,2]
[388441978,1759169448234,-585.54358357,0.00023974,2]
[388441979,1759169448245,-480.0,0.00023974,2]
[388441980,1759169448254,-480.0,0.00023974,2]
[388441981,1759169448264,-480.0,0.00023975,2]
[388441982,1759169448275,-480.0,0.00023975,2]
[388441983,1759169448285,-480.0,0.00023975,2]
[388441984,1759169448295,-800.0,0.00023976,2]
[388441985,1759169448304,-480.0,0.00023977,2]
[388441986,1759169448314,-488.29,0.00023977,2]
[388441987,1759169448323,-800.0,0.00023977,2]
[388441988,1759169448332,-480.0,0.00023978,2]
[388441989,1759169448343,-480.0,0.00023978,2]
[388441990,1759169448352,-480.0,0.00023978,2]
[388441991,1759169448362,-480.0,0.00023978,2]
[388441992,1759169448372,-800.0,0.00023978,2]
[388441993,1759169448382,-500.0,0.00023979,2]
[388441994,1759169448392,-480.0,0.00023979,2]
[388441995,1759169448401,-1939.19,0.00023979,2]
[388441996,1759169448411,-834.26,0.00023979,2]
[388441997,1759169448420,-650.31,0.00023979,2]
[388441998,1759169448441,-639.6,0.00023979,2]
[388441999,1759169448457,-616.64,0.00023979,2]
[388442000,1759169448467,-480.0,0.00023979,2]
[388442001,1759169448477,-2000.04,0.00023979,2]
[388442002,1759169448487,-576.59,0.00023979,2]
[388442003,1759169448496,-480.0,0.00023979,2]
[388442004,1759169448506,-621.91,0.00023979,2]
[388442005,1759169448515,-514.21,0.00023979,2]
[388442006,1759169448524,-480.0,0.00023979,2]
[388442007,1759169448533,-480.0,0.00023979,2]
[388442008,1759169448543,-480.0,0.00023979,2]
[388442009,1759169448552,-480.0,0.00023979,2]
[388442010,1759169448561,-480.0,0.00023979,2]
[388442011,1759169448570,-552.23,0.00023979,2]
[388442012,1759169448579,-480.0,0.00023979,2]
[388442013,1759169448588,-604.09,0.00023979,2]
[388442014,1759169448597,-1107.42,0.00023979,2]
[388442015,1759169448607,-480.0,0.00023979,2]
[388442016,1759169448616,-480.0,0.00023979,2]
[388442017,1759169448625,-523.35,0.00023979,2]
[388442018,1759169448635,-492.43,0.00023979,2]
[388442019,1759169448643,-670.04,0.00023979,2]
[388442020,1759169448653,-532.4,0.00023979,2]
[388442021,1759169448662,-480.0,0.00023979,2]
[388442022,1759169448671,-620.72,0.00023979,2]
[388442023,1759169448680,-718.23,0.00023979,2]
[388442024,1759169448690,-1815.44,0.00023979,2]
[388442025,1759169448699,-480.0,0.00023979,2]
[388442026,1759169448708,-480.0,0.00023979,2]
[388442027,1759169448717,-480.0,0.00023979,2]
[388442028,1759169448727,-480.0,0.00023979,2]
[388442029,1759169448736,-517.51,0.00023979,2]
[388442030,1759169448745,-480.0,0.00023979,2]
[388442031,1759169448754,-656.67,0.00023979,2]
[388442032,1759169448763,-480.0,0.00023981,2]
[388442033,1759169448773,-480.0,0.00023981,2]
[388442034,1759169448782,-921.41,0.00023981,2]
[388442035,1759169448792,-490.41,0.00023981,2]
[388442036,1759169448802,-506.81,0.00023981,2]
[388442037,1759169448812,-480.0,0.00023981,2]
[388442038,1759169448822,-480.0,0.00023981,2]
[388442039,1759169448831,-567.5,0.00023981,2]
[388442040,1759169448841,-480.0,0.00023981,2]
[388442041,1759169448851,-1115.2,0.00023981,2]
[388442042,1759169448861,-480.0,0.00023981,2]
[388442043,1759169448871,-480.0,0.00023981,2]
[388442044,1759169448881,-480.0,0.00023981,2]
[388442045,1759169448891,-480.0,0.00023981,2]
[388442046,1759169448902,-480.0,0.00023981,2]
[388442047,1759169448912,-595.8,0.00023981,2]
[388442048,1759169448922,-480.0,0.00023981,2]
[388442049,1759169448932,-480.0,0.00023981,2]
[388442050,1759169448941,-568.5,0.00023981,2]
[388442051,1759169448951,-480.0,0.00023981,2]
[388442052,1759169448961,-480.0,0.00023981,2]
[388442053,1759169448971,-599.83451735,0.00023981,2]
[388442054,1759169448981,-480.0,0.00023981,2]
[388442055,1759169448991,-544.26,0.00023981,2]
[388442056,1759169449002,-602.91,0.00023981,2]
[388442057,1759169449011,-480.0,0.00023981,2]
[388442058,1759169449022,-549.82,0.00023981,2]
[388442059,1759169449032,-569.74,0.00023981,2]
[388442060,1759169449042,-496.22,0.00023981,2]
[388442061,1759169449052,-480.0,0.00023981,2]
[388442062,1759169449062,-480.0,0.00023981,2]
[388442063,1759169449074,-480.0,0.00023981,2]
[388442064,1759169449084,-862.18,0.00023981,2]
[388442065,1759169449094,-480.0,0.00023981,2]
[388442066,1759169449104,-1145.66,0.00023981,2]
[388442067,1759169449115,-480.0,0.00023981,2]
[388442068,1759169449127,-867.48,0.00023981,2]
[388442069,1759169449318,-480.0,0.00023981,2]
[388442070,1759169449328,-848.01,0.00023981,2]
[388442071,1759169449338,-262.110353,0.00023981,2]
[388442072,1759169449347,-480.0,0.00023981,2]
[388442073,1759169449357,-669.24,0.00023981,2]
[388442074,1759169449366,-480.0,0.00023981,2]
[388442075,1759169449375,-653.62,0.00023981,2]
[388442076,1759169449384,-480.0,0.00023981,2]
[388442077,1759169449394,-480.0,0.00023981,2]
[388442078,1759169449403,-480.0,0.00023981,2]
[388442079,1759169449413,-480.0,0.00023981,2]
[388442080,1759169449423,-1115.66,0.00023981,2]
[388442081,1759169449435,-480.0,0.00023981,2]
[388442082,1759169449444,-480.0,0.00023981,2]
[388442083,1759169449453,-480.0,0.00023981,2]
[388442084,1759169449465,-533.37,0.00023981,2]
[388442085,1759169449476,-480.0,0.00023981,2]
[388442086,1759169449486,-480.0,0.00023981,2]
[388442087,1759169449495,-480.0,0.00023981,2]
[388442088,1759169449507,-480.0,0.00023981,2]
[388442089,1759169449516,-487.59,0.00023981,2]
[388442090,1759169449525,-497.42755054,0.00023981,2]
[388442091,1759169449535,-464.73,0.00023981,2]
[388442092,1759169449544,-480.0,0.00023981,2]
[388442093,1759169449553,-480.0,0.00023981,2]
[388442094,1759169449563,-510.72,0.00023981,2]
[388442095,1759169449572,-515.97,0.00023981,2]
[388442096,1759169449582,-480.0,0.00023981,2]
[388442097,1759169449591,-480.0,0.00023981,2]
[388442098,1759169449600,-480.0,0.00023981,2]
[388442099,1759169449609,-480.0,0.00023981,2]
[388442100,1759169449618,-480.0,0.00023981,2]
[388442101,1759169449628,-881.98,0.00023981,2]
[388442102,1759169449637,-758.97,0.00023981,2]
[388442103,1759169449646,-480.0,0.00023981,2]
[388442104,1759169449656,-789.86,0.00023981,2]
[388442105,1759169449665,-654.68,0.00023981,2]
[388442106,1759169449675,-480.0,0.00023981,2]
[388442107,1759169449684,-513.68,0.00023981,2]
[388442108,1759169449693,-480.0,0.00023981,2]
[388442109,1759169449702,-2023.29,0.00023981,2]
[388442110,1759169449712,-480.0,0.00023981,2]
[388442111,1759169449721,-480.0,0.00023981,2]
[388442112,1759169449731,-1930.02,0.00023981,2]
[388442113,1759169449740,-480.0,0.00023981,2]
[388442114,1759169449749,-480.0,0.00023981,2]
[388442115,1759169449759,-2504.81,0.00023981,2]
[388442116,1759169449770,-505.18,0.00023981,2]
[388442117,1759169449779,-496.7,0.00023981,2]
[388442118,1759169449788,-754.71,0.00023981,2]
[388442119,1759169449798,-1642.53,0.00023981,2]
[388442120,1759169449807,-487.19,0.00023981,2]
[388442121,1759169449816,-480.0,0.00023981,2]
[388442122,1759169449825,-991.58,0.00023981,2]
[388442123,1759169449835,-759.5,0.00023981,2]
[388442124,1759169449843,-1142.9,0.00023981,2]
[388442125,1759169449853,-480.0,0.00023981,2]
[388442126,1759169449862,-480.0,0.00023981,2]
[388442127,1759169449871,-1247.47,0.00023981,2]
[388442128,1759169449880,-480.0,0.00023981,2]
[388442129,1759169449890,-1111.08,0.00023981,2]
[388442130,1759169449900,-1067.81,0.00023981,2]
[388442131,1759169449909,-636.06,0.00023981,2]
[388442132,1759169449918,-480.0,0.00023981,2]
[388442133,1759169449928,-4596.88,0.00023981,2]
[388442134,1759169449938,-480.0,0.00023981,2]
[388442135,1759169449947,-1908.11,0.00023981,2]
[388442136,1759169449957,-583.03,0.00023981,2]